Cogmind - Beta 14 @@@ ROGUE MODE // 2024.09.01 @ 12:47:27 Player: Epsilon 11 Result: Destroyed by 8R-AWN with 8R-AWN's Boregun Performance ------------- Evolutions (1) 500 Regions Visited (5) 1000 Robots Destroyed (35) 175 Value Destroyed (898) 898 Prototype IDs (41) 820 Alien Tech Used (0) 0 Bonus (300) 300 TOTAL SCORE: 3693 Bonus ------- Aligned with FarCom 300 Cogmind --------- Core Integrity 0/400 Matter 191/300 Energy 310/310 System Corruption 20% Temperature Warm (139) Movement Treading (240) Ox1 Location -9/Exiles Parts ------- > --- POWER (1) -------- Fission Core > --- PROPULSION (2) --- Light Treads Light Treads > --- UTILITY (3) ------ Advanced Targeting Computer > --- WEAPON (3) ------- Improved Light Cannon Flak Cannon Flak Cannon > --- INVENTORY (5) ---- Autogun Bore Cannon Peak State ------------ > --- POWER ------------ Fission Core > --- PROPULSION ------- Light Treads Light Treads > --- UTILITY ---------- Advanced Targeting Computer Recoil Stabilizer Hardened Light Armor Plating > --- WEAPON ----------- Flak Cannon Flak Cannon Bore Cannon > --- INVENTORY -------- Nuclear Core Fission Core Light Fission Core Autogun Improved Light Cannon [Rating: 27] Favorites ----------- Power Fission Core Engine Light Angular Momentum Engine Power Core Fission Core Propulsion Compact Wheel Treads Light Treads Wheel Compact Wheel Utility Large Storage Unit Device Recoil Stabilizer Storage Large Storage Unit Processor Advanced Targeting Computer Protection Medium Armor Plating Weapon Assault Rifle Energy Gun Medium Laser Ballistic Gun Assault Rifle Ballistic Cannon Improved Light Cannon Launcher Rocket Launcher Special Melee Weapon Datajack Build | -11 -10 -10 -9 -9 -9 ------- Run | Yrd Mat Min Mat Min Exi Slots Evolved 2 | . . . 2 . . Power . | . . . . . . Propulsion . | . . . . . . Utility 1 | . . . 1 . . Weapon 1 | . . . 1 . . Parts Attached 56 | 7 9 7 13 10 10 Power 7 | 1 . 1 2 3 . Engine 5 | 1 . 1 2 1 . Core 2 | . . . . 2 . Reactor . | . . . . . . Propulsion 14 | 2 3 5 2 . 2 Treads 7 | . 3 2 . . 2 Leg . | . . . . . . Wheel 7 | 2 . 3 2 . . Hover . | . . . . . . Flight . | . . . . . . Utility 11 | 1 2 1 2 2 3 Device 2 | . . . . . 2 Storage 2 | 1 1 . . . . Processor 1 | . . . 1 . . Hackware . | . . . . . . Protection 6 | . 1 1 1 2 1 Artifact . | . . . . . . Weapon 24 | 3 4 . 7 5 5 Energy Gun 1 | 1 . . . . . Energy Cannon . | . . . . . . Ballistic Gun 5 | 2 2 . 1 . . Ballistic Cannon 15 | . 2 . 6 3 4 Launcher 2 | . . . . 2 . Special Weapon . | . . . . . . Impact Weapon . | . . . . . . Slashing Weapon . | . . . . . . Piercing Weapon . | . . . . . . Special Melee Weapon 1 | . . . . . 1 Unidentified Prototypes 1 | . . . . . 1 Parts Lost 18 | . . 3 3 10 2 Power 4 | . . . 1 3 . Propulsion 3 | . . 2 . 1 . Utility 6 | . . 1 1 2 2 Weapon 5 | . . . 1 4 . Highest Loss Streak 7 | . . 3 2 7 2 To Critical Strikes . | . . . . . . Average Slot Usage (%) 90 | . 98 99 95 86 80 Engine 7 | . 14 14 10 3 . Core 4 | . . . . 6 11 Treads 9 | . 18 8 3 . 16 Wheel 12 | . 9 19 18 16 2 Storage 11 | . 14 14 11 11 9 Processor 6 | . . . 8 11 11 Protection 11 | . 12 14 11 10 10 Ballistic Gun 11 | . 25 28 11 3 . Ballistic Cannon 11 | . 2 . 20 20 11 Special Melee Weapon 1 | . . . . . 6 Peak Build Rating 27 | 6 11 14 22 24 27 Average Rating 16 | 4 8 13 19 19 19 On Entrance 12 | . 6 9 14 20 24 Naked Turns . | . . . . . . Heaviest Build 56 | 14 40 40 48 54 56 Greatest Support 40 | 26 40 40 40 32 40 Greatest Overweight (x) 3 | . 1 1 2 3 3 Average Overweight (x) . | . . . . 1 . Largest Inventory Capacity 15 | 8 15 15 15 15 15 Average Capacity 14 | 6 14 15 15 15 13 Most Carried 15 | 3 12 15 15 15 15 Average Carried 11 | 1 9 13 14 10 9 Final Capacity 15 | 8 15 15 15 15 5 Final Carried 15 | 3 12 14 15 8 2 Class Distribution -------------------- 58% | Mutant 37% | Gunner 4% | Tank Dominant Class ---------------- Mutant | -10/Materials Mutant | -10/Mines Gunner | -9/Materials Gunner | -9/Mines Mutant | -9/Exiles Resources | -11 -10 -10 -9 -9 -9 ----------- Run | Yrd Mat Min Mat Min Exi Matter Collected 1847 | 212 190 260 314 539 332 Remotely . | . . . . . . Salvage Created 1009 | . 212 188 550 48 11 Parts 59 | . 16 9 34 . . Haulers Intercepted . | . . . . . . Recyclers Shooed . | . . . . . . Parts Field Recycled . | . . . . . . Retrieved Matter . | . . . . . . Parts Self-Destructed . | . . . . . . Prevented . | . . . . . . Kills | -11 -10 -10 -9 -9 -9 ------- Run | Yrd Mat Min Mat Min Exi Combat Hostiles Destroyed 53 | . 9 4 16 18 6 Guns 17 | . 9 4 4 . . Cannons 21 | . . . 12 3 6 AOE 15 | . . . . 15 . Classes Destroyed 9 | . 3 . 5 1 . Worker 1 | . . . 1 . . Recycler 1 | . . . 1 . . Operator 1 | . 1 . . . . Watcher 2 | . . . 2 . . Swarmer 10 | . 6 . 4 . . Grunt 14 | . 3 4 7 . . Duelist 1 | . . . 1 . . Sentry 4 | . . . 4 . . Assembled 23 | . . . . 17 6 Best Kill Streak 12 | . 3 3 8 12 6 Combat Bots Only 12 | . 3 3 7 12 6 Max Kills in Single Turn 4 | . 2 1 2 4 2 Gunslinging 1 | . 1 . . . . Exploded 4 | . . . . 4 . Melee . | . . . . . . Uniques/NPCs Destroyed 1 | . . . . 1 . YI-UF0 (-9/Mines) Combat | -11 -10 -10 -9 -9 -9 -------- Run | Yrd Mat Min Mat Min Exi Hostile Shots Fired 225 | . 54 38 47 59 27 Missed 61 | . 20 10 7 17 7 Damage Taken 2771 | . 284 387 460 1256 384 Core 479 | . 27 52 57 238 105 Absorbed by Shields . | . . . . . . Core Remaining (%) 84 | 100 . 68 . . . Volleys Fired 110 | . 19 22 35 23 11 Largest 3 | . 2 2 3 3 3 Hottest 145 | . 78 40 112 140 145 Shots Fired 250 | . 38 44 101 35 32 Gun 110 | . 34 44 31 1 . Cannon 124 | . 4 . 70 18 32 Launcher 16 | . . . . 16 . Special . | . . . . . . Kinetic 234 | . 38 44 101 19 32 Thermal . | . . . . . . Explosive 16 | . . . . 16 . Electromagnetic . | . . . . . . Robot Hit Streak 13 | . 6 8 13 4 5 Robot Miss Streak 11 | . 5 5 8 6 11 Penetration Max . | . . . . . . Secondary Targets 3 | . 2 1 . . . Max Gunslinging Chain 1 | . 1 1 . . . Shots Hit Robots 148 | . 22 25 58 20 23 Core Hits 107 | . 10 9 32 36 20 Critical Kills 2 | . 1 . . . 1 Critical Parts Destroyed 1 | . . . 1 . . Critical Strikes 8 | . 2 . 4 . 2 Destroy 3 | . 1 . 1 . 1 Blast 5 | . 1 . 3 . 1 Melee Attacks 4 | . . . . . 4 Impact . | . . . . . . Slashing . | . . . . . . Piercing . | . . . . . . Sneak Attacks 4 | . . . . . 4 Combat Hostiles . | . . . . . . Follow-up Attacks . | . . . . . . Damage Inflicted 3367 | . 312 301 1129 1172 453 Guns 861 | . 245 297 300 19 . Cannons 1533 | . 67 . 820 193 453 Explosions 960 | . . . . 960 . Melee . | . . . . . . Ramming 13 | . . 4 9 . . Kinetic 2394 | . 312 297 1120 212 453 Thermal . | . . . . . . Explosive 960 | . . . . 960 . Electromagnetic . | . . . . . . Impact . | . . . . . . Slashing . | . . . . . . Piercing . | . . . . . . Highest Corruption 20 | . . . . 7 20 Average Corruption 10 | . . . . 6 11 Corruption Purged . | . . . . . . Corruption Blocked . | . . . . . . Effects 38 | . . . . 6 32 Message Errors 8 | . . . . . 8 Matter Fused 8 | . . . . 2 6 Heat Flow Errors 6 | . . . . 3 3 Energy Discharges 11 | . . . . 1 10 Data Loss (minor) 3 | . . . . . 3 Misfires 1 | . . . . . 1 Alerts 1 | . . . . . 1 Overload Shots . | . . . . . . Overflow Damage 21 | . 15 . . 6 . Projectiles 20 | . 15 . . 5 . Explosions 1 | . . . . 1 . Melee . | . . . . . . Knockbacks 44 | . . . 17 9 18 Impact . | . . . . . . Kinetic 41 | . . . 14 9 18 Secondary 3 | . . . 3 . . Self-Inflicted Damage 263 | . . . 4 259 . Shots 7 | . . . . 7 . Rammed 2 | . . 1 1 . . Targets Rammed 2 | . . 1 1 . . Kicked . | . . . . . . Crushed . | . . . . . . Highest Temperature 684 | . 27 62 300 297 684 Average Temperature 117 | . 9 21 109 109 208 Received Heat Transfer 468 | . 42 243 123 . 60 Effects 9 | . . . 1 . 8 Shutdowns 2 | . . . . . 2 Energy Bleed 2 | . . . 1 . 1 Matter Decay 1 | . . . . . 1 Short Circuit 2 | . . . . . 2 Damage (minor) 1 | . . . . . 1 Damage (core) 1 | . . . . . 1 Siege Activations . | . . . . . . Robots Corrupted . | . . . . . . Combat Hostiles . | . . . . . . Parts Fried . | . . . . . . Impact Corruptions . | . . . . . . Robots Melted . | . . . . . . Combat Hostiles . | . . . . . . Parts Melted . | . . . . . . Heat Transferred . | . . . . . . Parts Sabotaged . | . . . . . . Parts Stolen . | . . . . . . Parts Stripped . | . . . . . . Power Chain Reactions . | . . . . . . Alert | -11 -10 -10 -9 -9 -9 ------- Run | Yrd Mat Min Mat Min Exi Peak Influence 286 | . 286 103 273 47 . Initial 45 | . . 33 11 45 . Average 105 | . 155 69 167 16 . Maximum Alert Level 1 | . 1 . 1 . . Low Security (%) 74 | 100 56 100 48 100 . Level 1 25 | . 44 . 51 . . Level 2 . | . . . . . . Level 3 . | . . . . . . Level 4 . | . . . . . . Level 5 . | . . . . . . High Security . | . . . . . . Max Security . | . . . . . . Squads Dispatched 1 | . 1 . . . . Investigation 1 | . 1 . . . . Extermination . | . . . . . . Reinforcement . | . . . . . . Assault . | . . . . . . Garrison . | . . . . . . Intercept . | . . . . . . Searches Triggered . | . . . . . . Construction Impeded . | . . . . . . Haulers Reinforced . | . . . . . . Active Scanning Responses . | . . . . . . Cargo Convoy Interrupts . | . . . . . . Stealth | -11 -10 -10 -9 -9 -9 --------- Run | Yrd Mat Min Mat Min Exi Distress Signals . | . . . . . . Communications Jammed . | . . . . . . Distress Signals . | . . . . . . Times Spotted 65 | . 15 4 18 20 8 Peak Tracking Total 10 | . 3 3 4 10 10 Tactical Retreats 3 | . 2 . . 1 . Traps | -11 -10 -10 -9 -9 -9 ------- Run | Yrd Mat Min Mat Min Exi Traps Triggered . | . . . . . . Indirectly . | . . . . . . Trap Hack Attempts . | . . . . . . Triggered . | . . . . . . Disarmed . | . . . . . . Reprogrammed . | . . . . . . Reused . | . . . . . . Traps Extracted . | . . . . . . Installed . | . . . . . . Triggered . | . . . . . . Machines | -11 -10 -10 -9 -9 -9 ---------- Run | Yrd Mat Min Mat Min Exi Machines Disabled 2 | . . . . . 2 Max in Single Turn 1 | . . . . . 1 Machines Repaired . | . . . . . . Machines Dismantled . | . . . . . . Machines Sabotaged . | . . . . . . Overloaded Fab Kills . | . . . . . . Hacking | -11 -10 -10 -9 -9 -9 --------- Run | Yrd Mat Min Mat Min Exi Machines Accessed 10 | . 4 . 4 . 2 Terminals 6 | . 3 . 3 . . Fabricators . | . . . . . . Repair Stations . | . . . . . . Recycling Units 2 | . 1 . 1 . . Scanalyzers . | . . . . . . Garrison Access . | . . . . . . Total Hacks 23 | . 12 . 9 . 2 Successful 10 | . 5 . 3 . 2 Failed 13 | . 7 . 6 . . Catastrophic 2 | . 1 . 1 . . Database Lockouts . | . . . . . . Manual 13 | . 5 . 7 . 1 Terminals 19 | . 11 . 8 . . Fabricators . | . . . . . . Repair Stations . | . . . . . . Recycling Units 2 | . 1 . 1 . . Scanalyzers . | . . . . . . Garrison Access . | . . . . . . Terminal Hacks 8 | . 4 . 2 . 2 Record 1 | . . . . . 1 Prototype ID Bank 2 | . 1 . 1 . . Locate Traps 1 | . 1 . . . . Hauler Manifests 2 | . 1 . 1 . . Zone Layout 1 | . 1 . . . . Derelict Proto ID Bank 1 | . . . . . 1 Fabricator Hacks . | . . . . . . Repair Station Hacks . | . . . . . . Recycling Unit Hacks 2 | . 1 . 1 . . Report Inventory 2 | . 1 . 1 . . Scanalyzer . | . . . . . . Garrison Access Hacks . | . . . . . . Unauthorized Hacks . | . . . . . . Terminals . | . . . . . . Fabricators . | . . . . . . Repair Stations . | . . . . . . Recycling Units . | . . . . . . Scanalyzers . | . . . . . . Garrison Access . | . . . . . . Data Cores Recovered . | . . . . . . Used . | . . . . . . Hacking Detections 6 | . 3 . 3 . . Full Trace Events 1 | . 1 . . . . Feedback Events . | . . . . . . Feedback Blocked . | . . . . . . Robot Schematics Acquired . | . . . . . . Robots Built . | . . . . . . Authchips . | . . . . . . Time . | . . . . . . Total Robot Build Rating . | . . . . . . Part Schematics Acquired . | . . . . . . Parts Built . | . . . . . . Authchips . | . . . . . . Time . | . . . . . . Total Part Build Rating . | . . . . . . Parts Repaired . | . . . . . . Time . | . . . . . . Parts Recycled . | . . . . . . Recycled Matter . | . . . . . . Retrieved Matter . | . . . . . . Retrieved Components . | . . . . . . Parts Scanalyzed . | . . . . . . Part Schematics Acquired . | . . . . . . Parts Damaged . | . . . . . . Bothacking | -11 -10 -10 -9 -9 -9 ------------ Run | Yrd Mat Min Mat Min Exi Used RIF Installer . | . . . . . . Robots Hacked 4 | . . . . . 4 Non-combat 3 | . . . . . 3 Combat 1 | . . . . . 1 Robot Hacks Applied 4 | . . . . . 4 parse_system 4 | . . . . . 4 Relay Couplers Released . | . . . . . . Fabnet Peak Effective % . | . . . . . . Robots Rewired . | . . . . . . Allies Hacked . | . . . . . . Hacks Repelled . | . . . . . . Allies | -11 -10 -10 -9 -9 -9 -------- Run | Yrd Mat Min Mat Min Exi Total Allies . | . . . . . . Largest Group . | . . . . . . Highest-Rated Group . | . . . . . . Highest-Rated Ally . | . . . . . . Total Orders . | . . . . . . Ally Attacks . | . . . . . . Total Damage . | . . . . . . Kills . | . . . . . . Allies Corrupted . | . . . . . . Allies Melted . | . . . . . . Intel | -11 -10 -10 -9 -9 -9 ------- Run | Yrd Mat Min Mat Min Exi Robot Analysis Total . | . . . . . . Derelict Logs Recovered 3 | . . 2 . 1 . Drone Launches . | . . . . . . Drone Recoveries . | . . . . . . Exploration | -11 -10 -10 -9 -9 -9 ------------- Run | Yrd Mat Min Mat Min Exi Turns Passed 3313 | 51 400 596 801 487 978 Spaces Moved 2072 | 43 221 439 495 336 538 Core 2 | 2 . . . . . Treads 656 | . 127 101 58 . 370 Legs . | . . . . . . Wheels 1414 | 41 94 338 437 336 168 Hover . | . . . . . . Flight . | . . . . . . Fastest Speed 50 | 50 90 105 115 115 130 Average Speed 133 | 89 136 117 124 125 161 Slowest Speed 240 | 100 240 160 240 145 240 Overloaded Moves . | . . . . . . Propulsion Burnouts . | . . . . . . Robots Hopped . | . . . . . . Cave-ins Triggered . | . . . . . . Exploration Rate (%) 51 | 3 29 97 40 73 69 Regions Visited 5 Branch Regions 3 Pre-discovered Areas 1 | . . . . . 1 Known Exits Taken 2 | . . . 1 1 . Unknown Exits Taken 3 | 1 1 1 . . . Scrap Searched 2 | . . 1 . 1 . Spaces Dug . | . . . . . . Terrain Destroyed 97 | . . . 2 94 1 Melee . | . . . . . . Projectile 12 | . . . 2 9 1 AOE 85 | . . . . 85 . Terrain Rammed . | . . . . . . Walls Destroyed . | . . . . . . Machines Disabled . | . . . . . . Actions | -11 -10 -10 -9 -9 -9 --------- Run | Yrd Mat Min Mat Min Exi Total 2408 | 52 278 472 604 370 632 Wait 95 | . 20 . 43 . 32 Move 2067 | 42 220 438 494 335 538 Hop . | . . . . . . Pick Up 41 | 3 9 4 9 1 15 Fast Attach 12 | 6 1 . 3 2 . Attach 21 | . . 3 5 7 6 Detach 5 | . . . 2 . 3 Swap 23 | 1 8 4 5 1 4 Drop 28 | . 1 . 7 1 19 Fire 110 | . 19 22 35 23 11 Melee 4 | . . . . . 4 Ram 1 | . . . 1 . . Kick . | . . . . . . Crush 1 | . . 1 . . . Escape Stasis . | . . . . . . Rewire . | . . . . . . Trap . | . . . . . . Miscellaneous . | . . . . . . Route ------- -11/Scrapyard -10/Materials -10/Mines (discovered 2 exits: *Mat x2) -9/Materials (discovered 4 exits: [*Mat] / *Min x2 / [*Sto]) -9/Mines (discovered 3 exits: [*Mat x2] / *Exi) -9/Exiles (discovered 1 exit: [*Min]) History --------- Turn | Location | Event 8 | -11/Scrapyard | Discovered new exit (range 15) 52 | -11/Scrapyard | Entered Materials 305 | -10/Materials | Build established: Mutant 315 | -10/Materials | Discovered new exit (range 14) 452 | -10/Materials | Entered Mines 507 | -10/Mines | Discovered new exit (range 5) 690 | -10/Mines | A weapon hastily lodged in a ceiling crevice suddenly fell to the ground 717 | -10/Mines | Learned Materials trap positions 747 | -10/Mines | Discovered new exit (range 8) 906 | -10/Mines | Lost 3 parts (2n1u) 948 | -10/Mines | Received a Rocket Launcher from a helpful Derelict 1048 | -10/Mines | Entered Materials 1048 | -9/Materials | Evolved 2 slots: Utility x1, Weapon x1 1049 | -9/Materials | Identified exit to Mines 1050 | -9/Materials | Loaded intel: 11 trap records 1408 | -9/Materials | Discovered new exit (range 16) 1585 | -9/Materials | Build established: Gunner 1591 | -9/Materials | Destroyed 7 combat bots 1623 | -9/Materials | Discovered new exit (range 5) 1849 | -9/Materials | Entered Mines 1850 | -9/Mines | Assembled infested the area 1855 | -9/Mines | Assisted by a Guerilla fighting off Assembled 1883 | -9/Mines | Discovered new exit (range 12) 1906 | -9/Mines | Found a damaged Exp. Sensor Array with a note attached 1909 | -9/Mines | Found Prototype Device 2014 | -9/Mines | Core integrity fell below 50% 2014 | -9/Mines | Destroyed YI-UF0 2035 | -9/Mines | Destroyed 12 combat bots 2042 | -9/Mines | Lost 7 parts (2p2u3w) 2135 | -9/Mines | Identified exit to Exiles 2266 | -9/Mines | Discovered new exit (range 11) 2330 | -9/Mines | Deemed a non-threat by the Exiles lab entrance 2336 | -9/Mines | Entered Exiles 2386 | -9/Exiles | Met 8R-AWN 2408 | -9/Exiles | Met EX-HEX 2483 | -9/Exiles | Met EX-BIN 2532 | -9/Exiles | Met EX-DEC 2568 | -9/Exiles | Learned location of Zion (-6) 2568 | -9/Exiles | Identified Exp. Sensor Array 2569 | -9/Exiles | System corruption reached 10% 2651 | -9/Exiles | Build established: Mutant 2894 | -9/Exiles | Aligned with FarCom system 2896 | -9/Exiles | Given EX-Vault access code 2933 | -9/Exiles | Opened EX-Vault 2971 | -9/Exiles | Warned to stay clear of 0b10 Research branches 3142 | -9/Exiles | Discovered new exit (range 14) 3213 | -9/Exiles | Attacked by the Exiles 3261 | -9/Exiles | Core integrity fell below 20% 3314 | -9/Exiles | Destroyed by 8R-AWN with 8R-AWN's Boregun Last Messages --------------- 03303_ HV Slug penetrates Wall. 03305_ Penetrated by HV Slug. 03305_ HV Slug penetrates Wall. 03305_ Penetrated by HV Slug. 03305_ HV Slug penetrates Wall. 03305_ 8R-AWN knocked back. 03305_ 8R-AWN Adv. Myomer Leg blasted off. 03307_ HV Slug penetrates Machine. 03307_ HV Slug penetrates Wall. 03308_ Wall collapses. 03309_ 8R-AWN knocked back. 03310_ HV Slug penetrates Wall. 03310_ Penetrated by HV Slug. 03310_ HV Slug penetrates Earth. 03312_ ST8%OYLJ:LQ/P=L> CBJS83|BRMUYL9Z16BXH 03312_ Penetrated by HV Slug. 03312_ HV Slug penetrates Earth. 03312_ Extracted 100 matter. 03314_ Penetrated by HV Slug. Map ----- +----------------------------------------------------+ | ?????????????????????????????????????????????????? | | ?????????????????????????????????????????????????? | | ??????????#####??????????????????????????????????? | | ?????????## ##?????????????????????????????????? | | ?????????# #?????????????????????????????????? | | ?????????# < #?????????????????????????????????? | | ?????????# ###???????????????????????????????? | | ?????????# #???????????????????????????????? | | ?????????# |/ #????????????????????????????????? | | ?????????## ! #????????????????????????????????? | | ??????????# ##???????????????????????????????? | | ??????????## #????????????#######????????????? | | ???????????# #######??????# "#????????????? | | ???????????# #""##?????# "#????????????? | | ???????????## #?????# "#????????????? | | ????????????##" ##???## ""#????????????# | | ????????????#"" #####" ""#???????????? | | ????????????#### g ##" ""#????????????" | | ???????????????## %#"" ;##???????????"" | | ????????????????#"## = #?????????????"" | | ????????????????####### ####??????????"" | | ??????????????????????### " ##????????? | | ????????????????########"% % """#??????????" | | ????????????????# " """%% % # ##???????# | | ????????????????# %!!! ###"" * """###???### | | ????????????????# !!!@! #?##" ""#####X# | | ????????????????# !! ##??#" ! | | ????????????????# !""""""#;#???#"# = | | ????????????????########## ???#### * | | ????????????????????????? ###?????### | | ?????????????????????????#??????????### | | ??????????????????????????????????????## | | ???????????????????????????????????????## | | ????????????????????????????????????????##" | | ?????????????????????????????????????????#""" | | ????????????????????????????????????????##" | | ????????????????????????????????????????#"" | | ???????????????????????????????????????##""" | | ???????????????????????????????????????#""" | | ???????????????????????????????????????#""" | | ???????????????????????????????????????#"" | | ???????????????????????????????????????#""" | | ???????????????????????????????????????#"" | | ???????????????????????????????????????##"" | | ????????????????????????????????????????#"""" | | ????????????????????????????????????????## | | ?????????????????????????????????????????#" | | ?????????????????????????????????????????#"""" | | ?????????????????????????????????????????#"" | | ??????????????????????????????????????????" | +----------------------------------------------------+ Best States ------------- Heat Dissipation 28 Energy Generation 18 Energy Capacity 310 Matter Stores 300 Matter Capacity 300 Sight Range 16 Terrain Scan Density 10 Armor Coverage 225 Evasion (%) 42 Targeting Accuracy 8 Recoil Reduction 6 Item Schematics ----------------- None Robot Schematics ------------------ None Fabricated ------------ Nothing Alien Tech Used ----------------- None Achievements -------------- None Challenges ------------ None Game ------ Seed GravmagRecoilReplica Manual? 0 Play Time 00:32:19 Cumulative 153.8 hours Start 2024.09.01 @ 12:14:44 End 2024.09.01 @ 12:47:27 Sessions 1 Manual Loads 0 Difficulty Rogue Special Mode None Game No. 71 Rogue 28 Adventurer 43 Explorer 0 Win Type - Total 4 Types 2/0/1/0/0/0/0/1/0 Lore% 60 Gallery% 66 Achievement% 58 Wizard Run 0 Options --------- Layout 0 ASCII 0 Keyboard 0 Movement Mouse Keybinds 0 Fullscreen 1 Font 24/Smallcaps Map View 76x50 Zoom Use 0% Tactical HUD 1 Map Filters NONE Filters NONE Steam 1 RUN: 4f2d0837-9e50-41bc-9b97-fc447ce29de9